bitfinex-derivatives/quotes_BTCF0:USTF0_20251215
["timestamp","ask_amount","ask_price","bid_price","bid_amount"]
[1765810758783,0.00010265,88156.0,88152.0,0.0113442]
[1765810758976,0.00010265,88156.0,88151.0,0.3608]
[1765810759573,0.00010265,88156.0,88155.0,0.009]
[1765810760179,0.00010265,88156.0,88152.0,0.3608]
[1765810761083,0.00010265,88156.0,88155.0,0.01]
[1765810761285,0.00110265,88156.0,88155.0,0.65542]
[1765810761582,0.19686,88179.0,88167.0,0.0113422]
[1765810761787,0.36686,88179.0,88172.0,0.3608]
[1765810762283,0.17,88179.0,88172.0,0.3608]
[1765810762686,0.65509,88173.0,88172.0,0.3608]
[1765810762880,0.68509,88173.0,88167.0,0.00017015]
[1765810763086,0.03,88173.0,88172.0,0.3608]
[1765810763290,0.0113368,88210.0,88186.0,0.64542]
[1765810763586,0.0113373,88206.0,88190.0,0.0113393]
[1765810763791,0.1913373,88206.0,88196.0,0.3608]
[1765810763989,0.0113379,88202.0,88196.0,0.3608]
[1765810764187,0.06,88202.0,88196.0,0.3608]
[1765810764985,0.0113379,88201.0,88196.0,0.3608]
[1765810765190,0.65509,88197.0,88196.0,0.3608]
[1765810765593,0.0113386,88196.0,88189.0,0.00017015]
[1765810765789,0.6664293,88190.0,88189.0,0.00017015]
[1765810765978,0.65509,88190.0,88189.0,0.00017015]
[1765810766183,0.32322,88190.0,88189.0,0.00017015]
[1765810766382,0.3608,88196.0,88189.0,0.00017015]
[1765810766583,0.0113392,88192.0,88189.0,0.00017015]
[1765810766791,0.32322,88190.0,88189.0,0.00017015]
[1765810766992,0.77509,88190.0,88189.0,0.01017015]
[1765810767290,0.78509,88190.0,88189.0,0.01017015]
[1765810767480,0.65509,88190.0,88189.0,0.01017015]
[1765810767683,0.65509,88190.0,88189.0,0.00017015]
[1765810767884,0.77509,88190.0,88189.0,0.00917015]
[1765810768384,0.77509,88190.0,88157.0,0.3608]
[1765810768385,0.8808,88190.0,88157.0,0.3608]
[1765810768696,0.3608,88165.0,88147.0,0.3721448]
[1765810768996,0.32322,88141.0,88136.0,0.3608]
[1765810769184,0.0113451,88145.0,88137.0,0.0113462]
[1765810769581,0.011346,88139.0,88136.0,0.3608]
[1765810769783,0.011346,88139.0,88132.0,0.48673015]
[1765810769784,0.0113464,88135.0,88132.0,0.48673015]
[1765810769986,0.3608,88139.0,88132.0,0.48673015]
[1765810770487,0.3608,88139.0,88136.0,0.0113462]
[1765810770689,0.0113451,88146.0,88133.0,0.0113466]
[1765810770891,0.16,88146.0,88136.0,0.011]
[1765810771096,0.16,88146.0,88136.0,0.0223462]
[1765810771500,0.16,88146.0,88142.0,0.0113454]
[1765810771690,0.16,88146.0,88139.0,0.0113459]
[1765810771999,0.16,88146.0,88138.0,0.3608]
[1765810772907,0.35152,88137.0,88136.0,0.011]
[1765810773098,0.68372,88137.0,88136.0,0.011]
[1765810773293,0.68372,88137.0,88132.0,0.48673015]
[1765810773495,0.0113457,88141.0,88136.0,0.008]
[1765810773791,0.011345,88147.0,88140.0,0.3608]
[1765810774097,0.011345,88146.0,88140.0,0.3608]
[1765810774392,0.011345,88146.0,88136.0,0.0113462]
[1765810774393,0.6950662,88137.0,88136.0,0.009]
[1765810774592,0.00017015,88150.0,88136.0,0.009]
[1765810774797,0.08151475,88150.0,88148.0,0.3608]
[1765810775192,0.21151465,88150.0,88148.0,0.3608]
[1765810775794,0.04151465,88150.0,88148.0,0.3608]
[1765810776094,0.03017015,88150.0,88148.0,0.3608]
[1765810776598,0.68372,88149.0,88148.0,0.3608]
[1765810776797,0.71372,88149.0,88148.0,0.3608]
[1765810777794,0.71372,88149.0,88148.0,0.3678]
[1765810777992,0.87372,88149.0,88148.0,0.3688]
[1765810778497,0.87372,88149.0,88148.0,0.007]
[1765810778696,0.00017015,88150.0,88148.0,0.007]
[1765810778999,0.68372,88149.0,88148.0,0.006]
[1765810779203,0.85372,88149.0,88148.0,0.006]
[1765810779387,0.6950667,88133.0,88130.0,0.59148]
[1765810779703,0.6950667,88133.0,88112.0,0.3608]
[1765810779704,0.35152,88113.0,88112.0,0.3608]
[1765810780086,0.35152,88113.0,88112.0,0.38798907]
[1765810780594,0.00011354,88113.0,88112.0,0.37663967]
[1765810781401,0.00011354,88113.0,88112.0,0.3678]
[1765810781402,0.68383354,88113.0,88112.0,0.3678]
[1765810781608,0.00011354,88113.0,88112.0,0.3791494]
[1765810782108,0.00011354,88113.0,88112.0,0.39617996]
[1765810782499,0.00011354,88113.0,88112.0,0.38483056]
[1765810782993,0.00017015,88121.0,88120.0,0.9204883]
[1765810783201,0.00017015,88121.0,88120.0,2.0118883]
[1765810783496,0.00017015,88121.0,88120.0,1.27324274]
[1765810783894,0.68389015,88121.0,88120.0,0.3608]
[1765810784097,0.3628692,88113.0,88112.0,0.008]
[1765810784301,0.68372,88111.0,88110.0,0.3608]
[1765810785098,0.35152,88111.0,88110.0,0.3608]
[1765810785501,0.35152,88111.0,88110.0,0.3721496]
[1765810785706,0.0113486,88118.0,88114.0,0.0113491]
[1765810785902,0.0113486,88118.0,88110.0,0.3608]
[1765810785903,0.0113495,88111.0,88110.0,0.3648]
[1765810786098,0.0113494,88112.0,88110.0,0.3648]
[1765810786509,0.001,88111.0,88110.0,0.3648]
[1765810787306,0.001,88111.0,88110.0,1.05885]
[1765810787510,0.6950695,88111.0,88110.0,0.7256]
[1765810787818,0.00017015,88121.0,88104.0,0.01693702]
[1765810787819,0.0113503,88105.0,88104.0,0.01693702]
[1765810788811,0.00017015,88121.0,88104.0,0.01693702]
[1765810788812,0.01151845,88121.0,88116.0,0.0113488]
[1765810789010,0.0113491,88115.0,88114.0,0.3608]
[1765810789207,0.00017015,88121.0,88115.0,0.011349]
[1765810789410,0.00017015,88121.0,88114.0,0.3608]
[1765810789711,0.02017015,88121.0,88117.0,0.0113487]
[1765810789899,0.02017015,88121.0,88114.0,0.3608]
[1765810789900,0.03017015,88121.0,88114.0,0.3608]
[1765810790107,0.03017015,88121.0,88120.0,0.3721483]
[1765810790401,0.00017015,88121.0,88120.0,0.3608]
[1765810790806,0.00017015,88121.0,88120.0,1.05485]
[1765810791110,0.00017015,88121.0,88120.0,0.3608]
[1765810791609,0.69523835,88121.0,88120.0,0.3608]
[1765810792204,0.72523835,88121.0,88120.0,0.3668]
[1765810792605,0.39303835,88121.0,88120.0,0.3668]
[1765810792806,0.03017015,88121.0,88112.0,1.09144]
[1765810793013,0.0113487,88118.0,88113.0,0.0113492]
[1765810793209,0.00017015,88121.0,88120.0,0.0113483]
[1765810793409,0.00017015,88121.0,88120.0,0.7185783]
[1765810793719,0.6950687,88117.0,88116.0,0.3608]
[1765810794008,0.0113503,88105.0,88104.0,0.74757702]
[1765810794211,0.52263033,88105.0,88104.0,0.74757702]
[1765810794410,0.35152,88105.0,88104.0,0.74757702]
[1765810795114,0.88372,88105.0,88104.0,0.00017015]
[1765810795418,0.88372,88105.0,88097.0,0.3608]
[1765810795419,0.8953517,88094.0,88093.0,0.3608]
[1765810795613,0.6950723,88089.0,88088.0,0.44332523]
[1765810795810,0.6950723,88089.0,88088.0,0.78676385]
[1765810796015,0.8450723,88089.0,88088.0,0.78676385]
[1765810796403,0.6950723,88089.0,88088.0,0.78676385]
[1765810796815,0.8550723,88089.0,88088.0,0.36092385]
[1765810797118,0.6950734,88081.0,88080.0,0.00017025]
[1765810797410,1.2158734,88081.0,88080.0,0.00017025]
[1765810797615,0.6950753,88066.0,88065.0,0.73064]
[1765810797819,0.6950763,88058.0,88057.0,0.01745516]
[1765810798013,0.0113565,88057.0,88053.0,0.3608]
[1765810798215,0.00010494,88065.0,88053.0,0.37802495]
[1765810798511,0.00010494,88065.0,88064.0,0.3608]
[1765810798713,0.00010494,88065.0,88054.0,1.5]
[1765810798930,0.0113564,88058.0,88055.0,0.73064]
[1765810799210,0.00010494,88065.0,88055.0,0.73064]
[1765810799408,0.00010494,88065.0,88056.0,0.21509]
[1765810799609,0.00110494,88065.0,88056.0,0.21509]
[1765810799919,0.0113564,88058.0,88056.0,0.21509]
[1765810800114,0.0113564,88058.0,88055.0,0.88515974]
[1765810800303,0.68372,88056.0,88055.0,0.73864]
[1765810800504,0.6950772,88051.0,88050.0,0.00017025]
[1765810800806,0.6950772,88051.0,88023.0,0.0113608]
[1765810800807,0.0113598,88031.0,88030.0,0.73072]
[1765810801013,0.0113598,88031.0,88020.0,0.16326058]
[1765810801014,0.68372,88028.0,88020.0,0.00874084]
[1765810801218,0.38224565,88031.0,88020.0,0.00874084]
[1765810801219,0.6950811,88021.0,88020.0,0.00874084]
[1765810801413,1.0558811,88021.0,88020.0,0.00874084]
[1765810801717,0.0113611,88021.0,88020.0,0.02620185]
[1765810802015,0.7159811,88021.0,88020.0,0.00874084]
[1765810802212,0.0113611,88021.0,88020.0,0.00874084]
[1765810802415,0.3420611,88021.0,88020.0,0.17923567]
[1765810802620,0.7651611,88021.0,88020.0,0.17923567]
[1765810802930,0.6838,88019.0,88018.0,0.00227228]
[1765810803311,0.6951621,88013.0,88012.0,5e-08]
[1765810803617,0.6951621,88013.0,87978.0,0.00227331]
[1765810803618,0.011365,87991.0,87990.0,0.01748908]
[1765810803810,1.05607509,87991.0,87990.0,0.00010996]
[1765810804006,0.6951665,87979.0,87978.0,0.00227331]
[1765810804207,1.2259665,87979.0,87978.0,0.00227331]
[1765810804514,0.0113683,87965.0,87956.0,0.42228]
[1765810804716,0.00017045,87969.0,87956.0,0.43935767]
[1765810804912,0.00011009,87991.0,87956.0,0.43935767]
[1765810804913,0.00011009,87991.0,87970.0,0.21372]
[1765810805213,0.00011009,87991.0,87990.0,0.34083]
[1765810805415,0.00011009,87991.0,87981.0,0.38324]
[1765810805613,0.00011009,87991.0,87990.0,0.68221]
[1765810805814,0.00011009,87991.0,87982.0,0.0113661]
[1765810805815,0.0113659,87985.0,87982.0,0.00017045]
[1765810806116,0.00011009,87991.0,87982.0,0.00017045]
[1765810806317,0.6838,87983.0,87982.0,0.00017045]
[1765810806517,0.6838,87983.0,87970.0,0.006]
[1765810806518,0.6951676,87971.0,87970.0,0.006]
[1765810806722,0.8551676,87971.0,87970.0,0.006]
[1765810806920,0.8551676,87971.0,87940.0,0.36005758]
[1765810806921,0.3307,87956.0,87946.0,0.09186536]
[1765810807221,0.3307,87947.0,87946.0,0.09186536]
[1765810807420,0.6838,87942.0,87941.0,0.16918428]
[1765810807610,0.6951714,87941.0,87940.0,0.00012322]
[1765810807808,0.6838,87934.0,87933.0,0.00011438]
[1765810808014,0.8438,87934.0,87933.0,0.00011438]
[1765810808222,0.6838,87934.0,87933.0,0.00011438]
[1765810808419,0.0568634,87932.0,87898.0,0.09217253]
[1765810808622,0.0113763,87904.0,87898.0,0.00227538]
[1765810808920,0.0113763,87904.0,87873.0,0.0113802]
[1765810808921,8.509e-05,87903.0,87871.0,0.0113804]
[1765810809220,0.3608,87886.0,87885.0,0.68221]
[1765810809415,0.0113774,87895.0,87885.0,0.68221]
[1765810809617,0.3608,87887.0,87873.0,0.3608]
[1765810809921,0.3608,87887.0,87880.0,0.0113793]
[1765810810220,0.3608,87887.0,87870.0,0.34856286]
[1765810810221,0.0113786,87886.0,87871.0,0.005]
[1765810810524,0.6951804,87872.0,87871.0,9e-08]
[1765810810818,0.6951804,87872.0,87835.0,0.3608]
[1765810810819,0.0113836,87847.0,87835.0,0.3608]
[1765810811026,0.3608,87845.0,87835.0,0.3608]
[1765810811223,0.3608,87845.0,87836.0,0.1713285]
[1765810811518,0.00017076,87850.0,87836.0,0.1713285]
[1765810811519,0.00017076,87850.0,87844.0,0.0113839]
[1765810811710,0.00011193,87849.0,87837.0,0.11384335]
[1765810811914,0.00011193,87849.0,87835.0,0.3608]
[1765810811915,0.3307,87846.0,87845.0,0.1713285]
[1765810812117,0.8028838,87846.0,87838.0,0.17008793]
[1765810812326,0.4608,87846.0,87836.0,0.17008793]
[1765810812513,0.4608,87846.0,87845.0,0.68221]
[1765810812708,0.4608,87846.0,87836.0,0.17008793]
[1765810813113,0.3608,87837.0,87823.0,0.3608]
[1765810813309,1.1546,87837.0,87836.0,0.17061731]
[1765810813522,1.0446,87837.0,87836.0,0.005]
[1765810813715,0.3608,87837.0,87836.0,0.85782731]
[1765810813910,0.001,87846.0,87845.0,0.34083]
[1765810814221,0.001,87846.0,87845.0,0.3608]
[1765810814427,2.69e-06,87850.0,87848.0,0.68221]
[1765810814634,0.0568471,87957.0,87890.0,0.21372]
[1765810814822,0.0113679,87969.0,87920.0,0.34856286]
[1765810814823,0.38594,87956.0,87920.0,0.34856286]
[1765810815123,0.38594,87956.0,87921.0,1.67127155]
[1765810815314,0.0113718,87939.0,87922.0,0.73408]
[1765810815514,9.36e-05,87938.0,87922.0,0.73425066]
[1765810815713,0.1914655,87938.0,87922.0,0.00017066]
[1765810815919,0.1800936,87938.0,87923.0,0.0113737]
[1765810816114,0.0113738,87924.0,87922.0,0.00017066]
[1765810816318,0.1813738,87924.0,87922.0,6.6e-07]
[1765810816521,0.4,87923.0,87922.0,6.6e-07]
[1765810816722,0.01,87923.0,87922.0,6.6e-07]
[1765810816927,0.01,87923.0,87922.0,0.00300066]
[1765810817125,0.00085363,87938.0,87922.0,0.00300066]
[1765810817422,0.12,87938.0,87932.0,0.0113726]
[1765810817726,0.12,87938.0,87922.0,6.6e-07]
[1765810817939,0.0113738,87923.0,87922.0,6.6e-07]
[1765810818123,0.15148819,87923.0,87922.0,6.6e-07]
[1765810818317,0.55148819,87923.0,87922.0,6.6e-07]
[1765810818622,0.15148819,87923.0,87922.0,6.6e-07]
[1765810818824,0.55148819,87923.0,87922.0,6.6e-07]
[1765810819235,0.0113762,87905.0,87891.0,0.0113779]
[1765810819430,0.0113762,87905.0,87867.0,0.011381]
[1765810819431,0.17,87905.0,87886.0,0.30508]
[1765810819619,0.00011439,87923.0,87922.0,0.001]
[1765810819818,0.04011439,87923.0,87922.0,0.001]
[1765810820221,0.04011439,87923.0,87892.0,8.865e-05]
[1765810820222,0.0113773,87896.0,87892.0,8.865e-05]
[1765810820420,0.00012147,87895.0,87892.0,8.865e-05]
[1765810820824,0.00012147,87895.0,87892.0,0.01146635]
[1765810821019,0.00012147,87895.0,87894.0,0.0113775]
[1765810821225,0.00017066,87903.0,87902.0,0.0113765]
[1765810821425,0.00017066,87903.0,87902.0,0.7462165]
[1765810821733,0.001,87923.0,87902.0,0.73484]
[1765810821929,0.171,87923.0,87893.0,0.0113776]
[1765810822132,0.0113759,87907.0,87893.0,0.0113776]
[1765810822426,0.0113759,87907.0,87892.0,8.865e-05]
[1765810822427,9.855e-05,87922.0,87894.0,0.17129529]
[1765810822629,0.20594,88000.0,87929.0,0.0568651]
[1765810822630,0.0113652,87990.0,87929.0,0.0568651]
[1765810822829,0.0113652,87990.0,87925.0,0.20633]
[1765810822830,0.00017056,87968.0,87956.0,0.0568477]
[1765810823129,0.0113633,88004.0,87975.0,0.21372]
[1765810823324,0.14,88004.0,87976.0,0.61852]
[1765810823520,0.0113637,88001.0,87966.0,1.42168]
[1765810823720,0.18,88001.0,87967.0,0.73688]
[1765810823928,0.0113653,87989.0,87975.0,0.00017056]
[1765810824240,0.0113653,87989.0,87959.0,0.17125011]
[1765810824241,0.0113687,87962.0,87956.0,0.003]
[1765810824425,0.01,87962.0,87956.0,0.003]
[1765810824728,0.011369,87960.0,87956.0,0.003]
[1765810824923,0.0113696,87955.0,87954.0,0.00013809]
[1765810825121,0.0313696,87955.0,87954.0,0.00013809]
[1765810825735,0.0001026,87961.0,87954.0,0.00013809]
[1765810825920,0.0101026,87961.0,87959.0,0.0113691]
[1765810826124,0.0113635,88003.0,87986.0,0.0113655]
[1765810826430,0.0113666,87979.0,87962.0,0.0113687]
[1765810826619,0.0113683,87966.0,87959.0,0.16966085]
[1765810826814,0.0113683,87966.0,87956.0,0.005]
[1765810826815,0.0113652,87990.0,87956.0,0.005]
[1765810827027,0.0113661,87983.0,87964.0,0.01153886]
[1765810827225,0.0113671,87975.0,87964.0,0.01153886]
[1765810827426,0.00017046,87982.0,87964.0,0.00017046]
[1765810827624,0.05017046,87982.0,87964.0,0.00017046]
[1765810827925,0.0113683,87966.0,87964.0,0.00017046]
[1765810828125,0.00017046,87982.0,87964.0,0.00017046]
[1765810828326,0.0113667,87978.0,87966.0,0.0113681]
[1765810828524,0.02017046,87982.0,87964.0,0.00017046]
[1765810828525,0.00017046,87982.0,87974.0,0.0113671]
[1765810828730,0.02017046,87982.0,87974.0,0.0113671]
[1765810829126,0.0113663,87981.0,87969.0,0.0113677]
[1765810829330,0.0113671,87975.0,87964.0,0.01153886]
[1765810829528,0.0113665,87980.0,87968.0,0.0113679]
[1765810829720,0.00017046,87982.0,87964.0,0.00017046]
[1765810829924,0.0113673,87974.0,87964.0,0.01153886]
[1765810830133,0.00017046,87982.0,87965.0,0.17025308]
[1765810830431,0.0113671,87975.0,87966.0,0.0113682]
[1765810830627,0.0113665,87980.0,87971.0,0.0113675]
[1765810830827,0.001,87980.0,87967.0,0.17025308]
[1765810831133,0.0113676,87971.0,87964.0,0.00017046]
[1765810831327,0.3608,87976.0,87975.0,0.011367]
[1765810831526,0.00017046,87982.0,87979.0,0.0113665]
[1765810831725,0.3608,87998.0,87988.0,0.0113654]
[1765810831931,0.0113662,87982.0,87980.0,0.17020673]
[1765810832233,0.7216,87981.0,87975.0,0.0113669]
[1765810832434,8.551e-05,87989.0,87988.0,0.0113654]
[1765810832640,0.0113591,88037.0,88000.0,0.21481]
[1765810832826,0.0113637,88001.0,87997.0,0.0486]
[1765810833029,0.0113637,88001.0,87984.0,1.42128]
[1765810833030,0.0113626,88010.0,87993.0,0.0486]
[1765810833233,0.011363,88007.0,87997.0,0.0113642]
[1765810833427,0.03,88007.0,88000.0,0.0113637]
[1765810833634,0.0113644,87996.0,87993.0,0.0486]
[1765810833942,0.011362,88015.0,87990.0,0.00017046]
[1765810833943,0.011365,87991.0,87990.0,0.00017046]
[1765810834132,0.04,87991.0,87990.0,0.00017046]
[1765810834431,0.0113648,87993.0,87990.0,0.00017046]
[1765810834639,0.0513648,87993.0,87990.0,0.00017046]
[1765810835028,0.0113679,87968.0,87967.0,1.4212]
[1765810835433,0.0113679,87969.0,87967.0,1.4212]
[1765810835639,0.0113679,87969.0,87942.0,0.0113712]
[1765810835640,0.0113695,87957.0,87951.0,0.01137]
[1765810835938,0.0113694,87957.0,87947.0,0.00017046]
[1765810836127,0.0113705,87948.0,87947.0,0.00017046]
[1765810836326,0.0113721,87936.0,87922.0,0.0113738]
[1765810836530,0.0113733,87927.0,87911.0,0.0113753]
[1765810836732,0.0113733,87927.0,87907.0,0.73664]
[1765810836733,0.0113726,87932.0,87923.0,0.17155704]
[1765810836934,0.056844,87962.0,87921.0,0.0113739]
[1765810837140,0.0113726,87933.0,87921.0,0.011374]
[1765810837341,0.00010016,87961.0,87916.0,0.17174284]
[1765810837342,0.0113732,87928.0,87916.0,0.17174284]
[1765810837530,0.0568495,87954.0,87907.0,0.73664]
[1765810837531,0.0113737,87924.0,87914.0,0.00017056]
[1765810837730,0.0113705,87949.0,87914.0,0.00017056]
[1765810837731,0.00012063,87923.0,87914.0,0.00017056]
[1765810838245,0.0113739,87922.0,87921.0,0.002]
[1765810838547,0.00012063,87923.0,87921.0,0.002]
[1765810838928,0.00017056,87929.0,87921.0,0.002]
[1765810839134,0.0113731,87928.0,87921.0,0.002]
[1765810839336,0.0113737,87924.0,87921.0,0.002]
[1765810840040,0.0113748,87915.0,87914.0,0.00317056]
[1765810840239,0.4121748,87915.0,87914.0,1e-08]
[1765810840541,0.0113769,87899.0,87884.0,0.8982]
[1765810840837,0.3608,87915.0,87892.0,0.3608]
[1765810841040,0.0113765,87902.0,87884.0,0.8982]
[1765810841343,0.0113765,87902.0,87874.0,0.3608]
[1765810841344,0.0113775,87895.0,87868.0,0.0113809]
[1765810841645,0.0113775,87895.0,87836.0,0.03957419]
[1765810841646,0.0113811,87867.0,87847.0,0.17088821]
[1765810841829,0.3608,87861.0,87847.0,0.17088821]
[1765810842033,0.3608,87861.0,87856.0,0.0113824]
[1765810842341,0.00012868,87860.0,87856.0,0.0113824]
[1765810842534,0.00012868,87860.0,87857.0,0.17073909]
[1765810842937,0.00012868,87860.0,87858.0,0.0113822]
[1765810843131,0.3608,87891.0,87864.0,0.10845]
[1765810843341,0.3608,87891.0,87886.0,0.0113785]
[1765810843933,0.005,87895.0,87886.0,0.0113785]
[1765810844331,0.005,87895.0,87890.0,0.011378]
[1765810844543,0.002,87895.0,87893.0,0.0113776]
[1765810844742,0.0113775,87894.0,87891.0,0.17064498]
[1765810845039,0.0113775,87894.0,87890.0,0.3608]
[1765810845239,0.0113775,87894.0,87886.0,0.001]
[1765810845240,0.0113782,87889.0,87886.0,0.001]
[1765810845438,0.3721782,87890.0,87886.0,0.001]
[1765810845638,0.0113782,87890.0,87886.0,0.001]
[1765810845848,0.3721784,87887.0,87882.0,0.00017066]
[1765810846037,0.4121784,87887.0,87882.0,0.00017066]
[1765810846237,0.0113814,87865.0,87857.0,0.7368]
[1765810846632,0.0113819,87861.0,87857.0,0.7368]
[1765810847035,0.0113822,87858.0,87857.0,0.7368]
[1765810847542,0.0113835,87848.0,87839.0,1.4331446]
[1765810847742,0.3608,87846.0,87839.0,1.42176]
[1765810847932,0.0113832,87851.0,87839.0,1.42176]
[1765810847933,0.3608,87859.0,87840.0,0.28494316]
[1765810848131,0.3608,87859.0,87839.0,1.42176]
[1765810848132,0.0113842,87843.0,87839.0,1.42176]
[1765810848337,0.3608,87845.0,87839.0,1.42176]
[1765810848646,0.0113837,87846.0,87840.0,0.53072642]
[1765810848847,0.0113841,87844.0,87840.0,0.53072642]
[1765810849039,0.3608,87848.0,87840.0,0.16992642]
[1765810849242,0.3608,87848.0,87839.0,1.42276]
[1765810849243,0.0113842,87843.0,87839.0,1.42276]
[1765810849843,0.3608,87848.0,87839.0,1.42276]
[1765810850038,0.3608,87848.0,87840.0,0.002]
[1765810850242,0.3721835,87848.0,87840.0,0.002]
[1765810850445,0.0113839,87845.0,87840.0,0.002]
[1765810850649,0.2058515,87864.0,87853.0,0.0113827]
[1765810850835,0.01,87864.0,87853.0,0.0113827]
[1765810851147,0.00017066,87866.0,87860.0,0.0113818]
[1765810851448,0.00017066,87866.0,87857.0,0.3608]
[1765810851743,0.00017066,87866.0,87858.0,0.0113822]
[1765810852253,0.00017066,87866.0,87856.0,0.3608]
[1765810852254,0.0113818,87862.0,87856.0,0.3608]
[1765810852546,0.19447,87864.0,87860.0,0.001]
[1765810852750,0.0113818,87861.0,87860.0,0.001]
[1765810853553,0.011385,87836.0,87833.0,8.602e-05]
[1765810854052,0.00017076,87843.0,87833.0,8.602e-05]
[1765810854244,0.0113853,87834.0,87833.0,8.602e-05]
[1765810854550,0.0113852,87835.0,87833.0,8.602e-05]
[1765810855141,0.3608,87838.0,87833.0,8.602e-05]
[1765810855454,0.00017076,87843.0,87840.0,0.0113845]
[1765810855646,0.00017076,87843.0,87834.0,0.17142521]
[1765810855841,0.205855,87837.0,87833.0,8.602e-05]
[1765810856144,0.3608,87842.0,87833.0,0.00208602]
[1765810856351,0.0113852,87835.0,87833.0,0.00208602]
[1765810857047,0.0113848,87838.0,87833.0,0.00208602]
[1765810857251,0.0113852,87835.0,87833.0,0.00208602]
[1765810857453,0.0113853,87835.0,87833.0,0.00208602]
[1765810857649,0.0113847,87839.0,87833.0,0.00208602]
[1765810857947,0.0113846,87840.0,87834.0,0.17118175]
[1765810858137,0.0113843,87842.0,87837.0,0.0113848]
[1765810858339,0.00017076,87843.0,87842.0,0.68554]
[1765810858543,0.3608,87860.0,87840.0,0.3721844]
[1765810858839,0.3608,87860.0,87850.0,0.3608]
[1765810859040,0.0113817,87862.0,87859.0,0.3608]
[1765810859349,0.0113828,87854.0,87851.0,0.2836956]
[1765810859547,0.0113828,87854.0,87852.0,0.73789076]
[1765810859849,1.06945,87853.0,87852.0,0.17002237]
[1765810860056,1.06945,87853.0,87852.0,0.00017076]
[1765810860551,0.3608,87853.0,87852.0,0.68571076]
[1765810860740,0.70865,87853.0,87852.0,0.00017076]
[1765810860948,0.0113841,87843.0,87842.0,0.001]
[1765810861143,1.0808341,87843.0,87842.0,0.001]
[1765810861355,0.3638853,87834.0,87833.0,8.602e-05]
[1765810861654,1.0808353,87834.0,87833.0,8.602e-05]
[1765810862049,1.0808353,87834.0,87812.0,0.3608]
[1765810862050,0.7017468,87822.0,87812.0,0.3608]
[1765810862249,0.69036,87819.0,87801.0,0.73748]
[1765810862854,1.05116,87819.0,87804.0,0.01608757]
[1765810863158,1.05124602,87819.0,87804.0,0.01608757]
[1765810863344,1.05124602,87819.0,87801.0,1.09828]
[1765810863345,0.89277,87802.0,87801.0,0.73748]
[1765810863655,0.89277,87802.0,87758.0,0.01603171]
[1765810863656,0.20241,87780.0,87758.0,0.01603171]
[1765810863951,0.2138052,87758.0,87740.0,0.28533905]
[1765810864151,0.011396,87752.0,87740.0,0.28533905]
[1765810864358,0.58788,87771.0,87751.0,0.28476359]
[1765810864651,0.0113942,87766.0,87741.0,0.17187218]
[1765810864861,0.0113942,87766.0,87739.0,0.17187218]
[1765810865059,0.00017096,87762.0,87742.0,0.17187218]
[1765810865244,0.00017096,87762.0,87740.0,1.95596212]
[1765810865557,0.002,87758.0,87740.0,1.78576359]
[1765810866056,0.002,87766.0,87740.0,1.5]
[1765810866349,0.0113953,87757.0,87744.0,0.28476359]
[1765810866548,0.0113943,87765.0,87744.0,0.28476359]
[1765810866853,0.002,87766.0,87740.0,0.001]
[1765810867052,0.00017096,87762.0,87744.0,0.00017096]
[1765810867552,0.0113968,87746.0,87744.0,0.00017096]
[1765810868053,0.001,87758.0,87745.0,0.28476359]
[1765810868243,0.0113962,87751.0,87744.0,0.00017096]
[1765810868443,0.0113974,87741.0,87740.0,0.001]
[1765810868644,0.0113987,87731.0,87730.0,0.003]
[1765810868846,0.41148915,87731.0,87730.0,0.003]
[1765810869053,0.01148915,87731.0,87730.0,0.003]
[1765810869855,0.01148915,87731.0,87730.0,0.28776359]
[1765810870043,9.045e-05,87731.0,87730.0,0.28776359]
[1765810870245,0.002,87751.0,87730.0,0.45842761]
[1765810870751,0.002,87751.0,87730.0,0.28976359]
[1765810870941,0.002,87751.0,87733.0,0.0113984]
[1765810871147,0.0113917,87785.0,87768.0,0.19471]
[1765810871347,0.0113864,87826.0,87768.0,0.19471]
[1765810871348,0.0569354,87821.0,87769.0,0.001]
[1765810871554,0.0569354,87821.0,87770.0,1.5]
[1765810871555,8.5e-07,87785.0,87770.0,1.5]
[1765810871741,8.5e-07,87785.0,87770.0,1.6139257]
[1765810872050,0.0113909,87791.0,87771.0,0.17110853]
[1765810872252,0.0569393,87815.0,87771.0,0.17110853]
[1765810872253,0.011392,87783.0,87771.0,0.17110853]
[1765810872454,0.007,87785.0,87771.0,0.17110853]
[1765810872650,0.017,87785.0,87770.0,1.5]
[1765810872853,0.017,87785.0,87769.0,0.00017085]
[1765810872854,0.0113918,87784.0,87783.0,0.28476359]
[1765810873250,0.0113935,87771.0,87770.0,0.001]
[1765810873450,0.00017085,87787.0,87775.0,0.28476359]
[1765810873651,0.0113915,87786.0,87775.0,0.28476359]
[1765810873956,0.0113918,87785.0,87775.0,0.28476359]
[1765810874145,0.05855927,87851.0,87770.0,0.001]
[1765810874146,0.0113888,87807.0,87783.0,0.0113919]
[1765810874347,0.0113874,87818.0,87793.0,0.0113905]
[1765810874546,0.0113874,87818.0,87793.0,0.0113906]
[1765810874748,0.0113856,87832.0,87794.0,0.2846619]
[1765810874952,0.04,87832.0,87794.0,0.2846619]
[1765810875146,0.04,87832.0,87792.0,0.19471]
[1765810875147,0.0113889,87806.0,87804.0,0.00017085]
[1765810875761,0.0113914,87787.0,87765.0,0.08932069]
[1765810875957,0.0113937,87769.0,87768.0,0.06364]
[1765810876259,0.0113924,87780.0,87775.0,0.28476359]
[1765810876763,0.0113936,87770.0,87769.0,0.00017085]
[1765810876965,0.0113921,87782.0,87769.0,0.00017085]
[1765810877158,0.00017085,87786.0,87769.0,0.18145506]
[1765810877460,0.0113909,87791.0,87775.0,0.18313]
[1765810877653,0.0113873,87819.0,87770.0,0.11392441]
[1765810877654,0.0113916,87786.0,87770.0,0.11392441]
[1765810877967,0.0113873,87819.0,87769.0,0.17006136]
[1765810877968,0.0113873,87819.0,87776.0,0.16986493]
[1765810878262,0.0569363,87820.0,87779.0,0.0113923]
[1765810878263,0.0113899,87799.0,87779.0,0.0113923]
[1765810878561,0.0113899,87799.0,87781.0,0.0113922]
[1765810878752,0.0113898,87799.0,87780.0,0.29660444]
[1765810878947,0.0113898,87799.0,87775.0,0.19471]
[1765810878948,0.00017085,87800.0,87782.0,0.17130535]
[1765810879157,0.0113913,87788.0,87781.0,0.17130535]
[1765810879462,0.00017085,87800.0,87792.0,0.0113907]
[1765810879652,0.00017085,87800.0,87787.0,0.00017085]
[1765810879957,0.0133898,87799.0,87798.0,0.28476359]